lending/lending_fUSD_20240111
["ID","MTS","AMOUNT","RATE_DAILY","PERIOD"]
[311245195,1704993034005,-533.32,0.00022586,2]
[311245196,1704993034016,-161.87,0.00022592,2]
[311245197,1704993034025,-571.74960455,0.00022598,2]
[311245198,1704993034034,-1361.26,0.00022616,2]
[311245199,1704993034043,-571.74960455,0.00022623,2]
[311245200,1704993034053,-571.74960455,0.00022648,2]
[311245201,1704993034062,-152.98373424,0.00022648,2]
[311245202,1704993034071,-152.98373424,0.00022648,2]
[311245203,1704993034080,-152.98373424,0.00022648,2]
[311245204,1704993034090,-152.98373424,0.00022648,2]
[311245205,1704993034099,-152.98373424,0.00022648,2]
[311245206,1704993034108,-152.98373424,0.00022648,2]
[311245207,1704993034117,-152.98373424,0.00022648,2]
[311245208,1704993034126,-152.98373424,0.00022648,2]
[311245209,1704993034135,-152.98373424,0.00022648,2]
[311245210,1704993034144,-152.98373424,0.00022648,2]
[311245211,1704993034154,-152.98373424,0.00022648,2]
[311245212,1704993034164,-152.98373424,0.00022648,2]
[311245213,1704993034173,-152.98373424,0.00022648,2]
[311245214,1704993034183,-152.98373424,0.00022648,2]
[311245215,1704993034192,-152.98373424,0.00022648,2]
[311245216,1704993034201,-152.98373424,0.00022648,2]
[311245217,1704993034210,-152.98373424,0.00022648,2]
[311245218,1704993034219,-855.41938781,0.00022651,2]
[311245219,1704993034228,-485.71523028,0.00022656,2]
[311245220,1704993034238,-152.98373424,0.00022659,2]
[311245221,1704993034247,-152.98373424,0.00022659,2]
[311245222,1704993034256,-152.98373424,0.00022659,2]
[311245223,1704993034267,-152.98373424,0.00022659,2]
[311245224,1704993034276,-152.98373424,0.00022659,2]
[311245225,1704993034285,-486.28507678,0.00022659,2]
[311245226,1704993034294,-253.58162507,0.00022659,2]
[311245227,1704993034303,-1439.77282779,0.00022659,2]
[311245228,1704993034312,-656.3896305,0.00022659,2]
[311245229,1704993034322,-2014.07950634,0.00022659,2]
[311245230,1704993034331,-2710.17637654,0.0002266,2]
[311245231,1704993034340,-195.65186544,0.0002266,2]
[311245232,1704993034350,-623627.0583948,0.00022661,2]
[311245233,1704993034359,-571.74960455,0.00022674,2]
[311245234,1704993034368,-571.74960455,0.00022699,2]
[311245235,1704993034379,-533.32,0.00022701,2]
[311245236,1704993034388,-256.42,0.00022722,2]
[311245237,1704993034397,-571.74960455,0.00022724,2]
[311245238,1704993034404,-370.77979222,0.00022737,2]
[311245239,1704993034411,-485.71523028,0.00022737,2]
[311245240,1704993034420,-571.74960455,0.00022749,2]
[311245241,1704993034429,-193.68462287,0.0002275,2]
[311245242,1704993034438,-161.87,0.00022754,2]
[311245243,1704993034447,-155.0,0.00022759,2]
[311245244,1704993034455,-2606.43263937,0.0002276,2]
[311245245,1704993034464,-278.63619624,0.0002276,2]
[311245246,1704993034473,-571.74960455,0.00022774,2]
[311245247,1704993034482,-571.74960455,0.00022799,2]
[311245248,1704993034491,-164.5705415,0.000228,2]
[311245249,1704993034500,-13991.95827362,0.000228,2]
[311245250,1704993034509,-533.32,0.00022815,2]
[311245251,1704993034518,-485.71523028,0.00022819,2]
[311245252,1704993034528,-571.74960455,0.00022825,2]
[311245253,1704993034537,-19878.0226,0.0002283,2]
[311245254,1704993034547,-571.74960455,0.0002285,2]
[311245255,1704993034556,-256.42,0.00022859,2]
[311245256,1704993034565,-571.74960455,0.00022875,2]
[311245257,1704993034574,-338.16719386,0.00022898,2]
[311245258,1704993034584,-156.58819109,0.00022898,2]
[311245259,1704993034593,-155.0,0.00022899,2]
[311245260,1704993034602,-11216.4232,0.000229,2]
[311245261,1704993034612,-413.8604,0.000229,2]
[311245262,1704993034622,-245000.0,0.000229,2]
[311245263,1704993034631,-729.7444,0.000229,2]
[311245264,1704993034640,-571.74960455,0.000229,2]
[311245265,1704993034650,-386.0405398,0.000229,2]
[311245266,1704993034658,-1023.32978316,0.000229,2]
[311245267,1704993034668,-187.1863413,0.000229,2]
[311245268,1704993034677,-1382.42797954,0.000229,2]
[311245269,1704993034686,-370.77979222,0.000229,2]
[311245270,1704993034695,-2638.56864254,0.000229,2]
[311245271,1704993034705,-485.71523028,0.000229,2]
[311245272,1704993034714,-58239.67970557,0.00022903,2]
[311245273,1704993034723,-193.68462286,0.00022903,2]
[311245274,1704993034733,-161.87,0.00022917,2]
[311245275,1704993034741,-533.32,0.00022929,2]
[311245276,1704993034750,-1248.20684203,0.00022929,2]
[311245277,1704993034760,-1000.0,0.0002293,2]
[311245278,1704993034769,-200.55854945,0.0002293,2]
[311245279,1704993034778,-855.41938781,0.0002299,2]
[311245280,1704993034787,-855.41938781,0.0002299,2]
[311245281,1704993034796,-256.42,0.00022996,2]
[311245282,1704993034806,-2399.31331131,0.00022998,2]
[311245283,1704993034815,-486.63435645,0.00022998,2]
[311245284,1704993034824,-229.46032923,0.00022998,2]
[311245285,1704993034833,-237.61372398,0.00022998,2]
[311245286,1704993034843,-155.92369904,0.00022998,2]
[311245287,1704993034854,-155.0,0.00022999,2]
[311245288,1704993034865,-188.6809466,0.00022999,2]
[311245289,1704993034873,-150.0,0.00022999,2]
[311245290,1704993034883,-150.0,0.00022999,2]
[311245291,1704993034892,-150.0,0.00022999,2]
[311245292,1704993034901,-150.0,0.00022999,2]
[311245293,1704993034911,-150.0,0.00022999,2]
[311245294,1704993034920,-150.0,0.00022999,2]
[311245295,1704993034929,-789107.93562304,0.00023,2]
[311245296,1704993035206,-406.45312757,0.00023,2]
[311245297,1704993035231,-8146.45135668,0.00023,2]
[311245298,1704993035243,-74637.92759781,0.00023,2]
[311245299,1704993035256,-3252.31563867,0.00023,2]
[311245300,1704993035268,-462.68352,0.00023,2]
[311245301,1704993036318,250.0,0.00021622,2]
[311245310,1704993037890,-511296.82246641,0.00023,2]
[311245312,1704993037900,-437.25032491,0.00023,2]
[311245313,1704993037910,-254.5523337,0.00023,2]
[311245314,1704993037919,-1038.76477041,0.00023,2]
[311245315,1704993037928,-4138159.22747322,0.00023,2]
[311245316,1704993037937,-533.32,0.00023043,2]
[311245317,1704993037946,-290.12,0.00023047,2]
[311245318,1704993037955,-176.05,0.00023096,2]
[311245319,1704993037964,-636.43786626,0.0002313,2]
[311245320,1704993037974,-256.42,0.00023133,2]
[311245321,1704993037983,-1000.0,0.00023153,2]
[311245322,1704993037992,-1042.96959544,0.00023153,2]
[311245323,1704993038002,-533.32,0.00023157,2]
[311245324,1704993038011,-200.0,0.0002316,2]
[311245325,1704993038021,-256.42,0.0002327,2]
[311245326,1704993038030,-533.32,0.00023271,2]
[311245327,1704993038039,-290.12,0.00023276,2]
[311245328,1704993038048,-373.16902012,0.00023288,2]
[311245329,1704993038057,-607.45041054,0.00023288,2]
[311245330,1704993038066,-550.90114703,0.00023288,2]
[311245331,1704993038075,-467.88721811,0.00023288,2]
[311245332,1704993038084,-468.10138208,0.00023288,2]
[311245333,1704993038094,-533.32,0.00023385,2]
[311245334,1704993038103,-256.42,0.00023407,2]
[311245335,1704993038113,-856.57,0.00023437,2]
[311245336,1704993038122,-533.32,0.00023499,2]
[311245337,1704993038131,-290.12,0.00023504,2]
[311245338,1704993038140,-256.42,0.00023544,2]
[311245339,1704993038149,-856.57,0.00023561,2]
[311245340,1704993038158,-1361.26,0.00023594,2]
[311245341,1704993038167,-533.32,0.00023613,2]
[311245342,1704993038177,-176.05,0.00023644,2]
[311245343,1704993038187,-457.16328073,0.00023681,2]
[311245344,1704993038196,-856.57,0.00023684,2]
[311245345,1704993038205,-803.59,0.00023694,2]
[311245346,1704993038215,-533.32,0.00023727,2]
[311245347,1704993038224,-290.12,0.00023732,2]
[311245348,1704993038234,-181.45,0.00023797,2]
[311245349,1704993038243,-856.57,0.00023807,2]
[311245350,1704993038253,-533.32,0.00023841,2]
[311245351,1704993038262,-13991.95827354,0.000239,2]
[311245352,1704993038272,-856.57,0.00023931,2]
[311245353,1704993038283,-290.12,0.0002396,2]
[311245354,1704993038292,-5386.3056,0.0002399,2]
[311245355,1704993038301,-200.84765735,0.00024,2]
[311245356,1704993038310,-856.57,0.00024054,2]
[311245357,1704993038319,-856.57,0.00024178,2]
[311245358,1704993038329,-290.12,0.00024188,2]
[311245359,1704993038338,-176.05,0.00024192,2]
[311245360,1704993038347,-794.17,0.00024232,2]
[311245361,1704993038356,-167.0,0.00024297,2]
[311245362,1704993038366,-856.57,0.00024301,2]
[311245364,1704993038375,-1000.0,0.00024333,2]
[311245366,1704993038384,-1276.17,0.00024371,2]
[311245368,1704993038393,-300.0,0.00024373,2]
[311245370,1704993038403,-290.12,0.00024417,2]
[311245372,1704993038415,-856.57,0.00024424,2]
[311245374,1704993038424,-856.57,0.00024548,2]
[311245376,1704993038433,-1361.26,0.00024573,2]
[311245378,1704993038442,-290.12,0.00024645,2]
[311245380,1704993038451,-250.0,0.00024658,2]
[311245382,1704993038460,-856.57,0.00024671,2]
[311245384,1704993038470,-2451.28538053,0.0002473,2]
[311245386,1704993038479,-349.45161643,0.0002474,2]
[311245388,1704993038488,-210.0,0.0002478,2]
[311245390,1704993038497,-856.57,0.00024794,2]
[311245392,1704993038506,-803.59,0.00024823,2]
[311245394,1704993038520,-290.12,0.00024873,2]
[311245396,1704993038529,-856.57,0.00024918,2]
[311245398,1704993038538,-484471.66421477,0.00024988,2]
[311245400,1704993038547,-798.52290604,0.00025,2]
[311245402,1704993038556,-1246.87746617,0.00025,2]
[311245404,1704993038565,-302.99852373,0.00025,2]
[311245406,1704993038575,-155.52776589,0.00025,2]
[311245408,1704993038585,-1016.69878254,0.00025,2]
[311245410,1704993038594,-350.0,0.00025,3]
[311245412,1704993038603,-201.7363193,0.00025,2]
[311245414,1704993038612,-533.14838077,0.00025,2]
[311245416,1704993038622,-167.12139895,0.00025,2]
[311245418,1704993038631,-1593.11756473,0.00025,2]
[311245420,1704993038641,-13991.95827354,0.00025,2]
[311245422,1704993038650,-450.0,0.0002502,3]
[311245424,1704993038659,-856.57,0.00025041,2]
[311245426,1704993038669,-167.0,0.00025099,2]
[311245429,1704993038692,-290.12,0.00025101,2]
[311245432,1704993038704,-856.57,0.00025164,2]
[311245434,1704993038715,-1276.17,0.00025259,2]
[311245436,1704993038725,-856.57,0.00025288,2]
[311245438,1704993038737,-290.12,0.00025329,2]
[311245440,1704993038748,-856.57,0.00025411,2]
[311245442,1704993038758,-856.57,0.00025534,2]
[311245444,1704993038771,-1361.26,0.00025551,2]
[311245446,1704993038781,-290.12,0.00025557,2]
[311245448,1704993038791,-856.57,0.00025658,2]
[311245450,1704993038801,-856.57,0.00025781,2]
[311245452,1704993038811,-290.12,0.00025786,2]
[311245454,1704993038820,-167.0,0.00025901,2]
[311245456,1704993038830,-401.46744308,0.00025902,11]
[311245459,1704993038840,-803.59,0.00025951,2]
[311245461,1704993038850,-181.45,0.0002596,2]
[311245463,1704993038859,-290.12,0.00026014,2]
[311245465,1704993038869,-150.0,0.00026079,2]
[311245467,1704993038878,-1276.17,0.00026146,2]
[311245469,1704993038889,-290.12,0.00026242,2]
[311245471,1704993038899,-163.17,0.00026263,2]
[311245473,1704993038908,-1057.13967802,0.00026425,2]
[311245475,1704993038919,-290.12,0.0002647,2]
[311245477,1704993038929,-794.17,0.00026496,2]
[311245479,1704993038938,-1361.26,0.0002653,2]
[311245481,1704993038947,-8073.54,0.00026575,2]
[311245483,1704993038957,-290.12,0.00026698,2]
[311245485,1704993038967,-167.0,0.00026703,2]
[311245487,1704993038976,-290.12,0.00026927,2]
[311245489,1704993038986,-506.91876202,0.00027,2]
[311245491,1704993038995,-400.0,0.00027,3]
[311245493,1704993039005,-1276.17,0.00027034,2]
[311245496,1704993039017,-1000.0,0.00027037,2]
[311245498,1704993039025,-803.59,0.00027079,2]
[311245500,1704993039035,-290.12,0.00027155,2]
[311245502,1704993039044,-293.0,0.00027258,2]
[311245504,1704993039053,-290.12,0.00027383,2]
[311245506,1704993039062,-150.0,0.00027397,2]
[311245508,1704993039072,-3000.0,0.00027397,2]
[311245510,1704993039081,-3000.0,0.00027397,2]
[311245512,1704993039091,-3000.0,0.00027397,2]
[311245514,1704993039100,-3000.0,0.00027397,2]
[311245515,1704993039110,-3000.0,0.00027397,2]
[311245517,1704993039119,-3000.0,0.00027397,2]
[311245518,1704993039128,-3000.0,0.00027397,2]
[311245520,1704993039137,-3000.0,0.00027397,2]
[311245522,1704993039146,-3000.0,0.00027397,2]
[311245524,1704993039156,-5332.5822099,0.00027397,2]
[311245526,1704993039165,-155.0,0.00027397,2]
[311245529,1704993039178,-1874.02,0.00027397,2]
[311245531,1704993039189,-8802.26,0.00027397,2]
[311245533,1704993039199,-250.0,0.00027397,2]
[311245535,1704993039209,-1055.34,0.00027397,4]
[311245537,1704993039218,-150.0,0.00027399,2]
[311245539,1704993039228,-150.0,0.00027399,2]
[311245541,1704993039237,-1393.56,0.000274,2]
[311245543,1704993039247,-1393.56,0.000274,2]
[311245545,1704993039256,-1393.56,0.000274,2]
[311245547,1704993039267,-1393.56,0.000274,2]
[311245549,1704993039277,-1393.56,0.000274,2]
[311245551,1704993039289,-1393.56,0.000274,2]
[311245553,1704993039298,-1393.56,0.000274,2]
[311245555,1704993039312,-1393.56,0.000274,2]
[311245557,1704993039321,-1393.56,0.000274,2]
[311245559,1704993039333,-1393.56,0.000274,2]
[311245561,1704993039342,-167.0,0.00027505,2]
[311245563,1704993039352,-1361.26,0.00027508,2]
[311245565,1704993039362,-8802.26,0.00027556,2]
[311245567,1704993039371,-8802.26,0.00027714,2]
[311245569,1704993039382,-8802.26,0.00027872,2]
[311245571,1704993039391,-1276.17,0.00027921,2]
[311245573,1704993039400,-150.0,0.00027945,2]
[311245575,1704993039410,-202.73182804,0.00028,2]
[311245577,1704993039419,-687.67126358,0.00028,2]
[311245579,1704993039429,-203.31330377,0.00028,2]
[311245581,1704993039439,-8802.26,0.0002803,2]
[311245583,1704993039449,-8802.26,0.00028189,2]
[311245585,1704993039459,-167.0,0.00028307,2]
[311245587,1704993039468,-8802.26,0.00028347,2]
[311245589,1704993039478,-1361.26,0.00028487,2]
[311245591,1704993039488,-150.0,0.00028493,2]
[311245593,1704993039497,-8802.26,0.00028505,2]
[311245595,1704993039507,-8802.26,0.00028664,2]
[311245597,1704993039518,-794.17,0.0002876,2]
[311245599,1704993039531,-155.0,0.00028767,2]
[311245601,1704993039541,-195.65186542,0.0002877,2]
[311245603,1704993039551,-1276.17,0.00028808,2]
[311245605,1704993039561,-8802.26,0.00028822,2]
[311245607,1704993039572,-386.0405398,0.0002885,2]
[311245609,1704993039582,-1023.32978314,0.0002885,2]
[311245611,1704993039592,-1382.42797953,0.0002885,2]
[311245614,1704993039602,-2638.56864252,0.0002885,2]
[311245615,1704993039612,-401.46744308,0.00028902,15]
[311245618,1704993039622,-450.0,0.00029,3]
[311245620,1704993039632,-7879.36188141,0.00029,15]
[311245622,1704993039642,-150.0,0.00029041,2]
[311245624,1704993039651,-1361.26,0.00029465,2]
[311245626,1704993039660,-187.63828412,0.000295,3]
[311245628,1704993039670,-19100.27553742,0.000295,2]
[311245630,1704993039679,-150.0,0.00029589,2]
[311245632,1704993039689,-1000.0,0.0002974,2]
[311245634,1704993039698,-262.97074533,0.000298,2]
[311245636,1704993039707,-431537.78444806,0.000298,2]
[311245638,1704993039717,-43049.87194131,0.000299,2]
[311245639,1704993039727,-600.83602141,0.0002998,3]
[311245641,1704993039736,-314.24091009,0.0002998,3]
[311245643,1704993039746,-1038.8432883,0.0002998,7]
[311245646,1704993039756,-411.0,0.00029984,2]
[311245648,1704993039765,-1437.32998975,0.00029997,2]
[311245650,1704993039775,-150.0,0.00029999,2]
[311245652,1704993039785,-150.0,0.00029999,2]
[311245654,1704993039795,-155.0,0.0003,4]
[311245656,1704993039804,-8806.28564995,0.0003,4]
[311245658,1704993039814,-169.66258545,0.0003,4]
[311245660,1704993039823,-579.36551343,0.0003,4]
[311245662,1704993039833,-581.54000885,0.0003,2]
[311245664,1704993039842,-18994.0891544,0.0003,4]
[311245666,1704993039855,-155.0,0.0003,4]
[311245668,1704993039865,-1647.11,0.0003,30]
[311245670,1704993039875,-72797.28205453,0.0003,4]
[311245672,1704993039885,-155.0,0.0003,2]
[311245674,1704993039895,-445.44211474,0.0003,4]
[311245676,1704993039905,-2553.39874844,0.0003,4]
[311245678,1704993039915,-155.0,0.0003,4]
[311245681,1704993039925,-461.6883313,0.0003,4]
[311245683,1704993039935,-155.0,0.0003,4]
[311245685,1704993039945,-159.66102012,0.0003,4]
[311245687,1704993039955,-308366.93329374,0.0003,4]
[311245689,1704993039965,-590.30393313,0.0003,2]
[311245691,1704993039974,-180.017739,0.0003,4]
[311245693,1704993039984,-197275.05981405,0.0003,4]
[311245695,1704993039994,-163.17,0.00030015,2]
[311245697,1704993040004,-450.0,0.0003002,3]
[311245699,1704993040015,-450.0,0.0003002,3]
[311245701,1704993040025,-1000.0,0.000301,2]
[311245703,1704993040035,-300.0,0.00030136,2]
[311245704,1704993040046,-154.73282768,0.00030136,2]
[311245705,1704993040055,-10000.0,0.00030137,2]
[311245706,1704993040065,-153.84,0.00030137,2]
[311245707,1704993040075,-200.0,0.00030137,2]
[311245708,1704993040085,-237.5410763,0.00030137,2]
[311245709,1704993040095,-155.0,0.00030137,2]
[311245710,1704993040105,-383.83,0.00030269,2]
[311245711,1704993040115,-16550.0,0.000303,2]
[311245712,1704993040125,-2723.0,0.000303,2]
[311245713,1704993040134,-1361.26,0.00030443,2]
[311245714,1704993040144,-152.11769086,0.000309,2]
[311245715,1704993040154,-152.11769049,0.000309,2]
[311245716,1704993040163,-152.11769049,0.000309,2]
[311245718,1704993040173,-152.11769049,0.000309,2]
[311245720,1704993040182,-152.11769049,0.000309,2]
[311245722,1704993040192,-152.11769049,0.000309,2]
[311245724,1704993040201,-152.11769049,0.000309,2]
[311245726,1704993040211,-152.11769049,0.000309,2]
[311245729,1704993040222,-152.11769049,0.000309,2]
[311245731,1704993040232,-152.11769049,0.000309,2]
[311245733,1704993040243,-152.11769049,0.000309,2]
[311245735,1704993040254,-152.11769049,0.00030921,2]
[311245737,1704993040264,-500.0,0.00031,3]
[311245739,1704993040274,-450.0,0.00031012,3]
[311245741,1704993040285,-794.17,0.00031024,2]
[311245743,1704993040295,-153.84,0.0003105,2]
[311245745,1704993040305,-164.57054148,0.00031153,2]
[311245747,1704993040315,-1361.26,0.00031422,2]
[311245749,1704993040326,-8472.12316007,0.0003143,4]
[311245751,1704993040335,-406.31,0.00031507,2]
[311245753,1704993040344,-157.34854192,0.00031507,2]
[311245755,1704993040354,-152.11769049,0.0003168,2]
[311245758,1704993040364,-305421.914437,0.000318,3]
[311245760,1704993040374,-400.0,0.000319,11]
[311245762,1704993040383,-153.84,0.00031963,2]
[311245763,1704993040393,-1437.32998975,0.00031997,2]
[311245766,1704993040403,-155.36162392,0.00032,2]
[311245768,1704993040413,-173559.82731972,0.00032,2]
[311245770,1704993040423,-155.41041342,0.00032,4]
[311245772,1704993040433,-450.0,0.00032004,3]
[311245774,1704993040442,-1022.54402972,0.000321,2]
[311245776,1704993040452,-1361.26,0.000324,2]
[311245778,1704993040461,-152.11769049,0.00032439,2]
[311245780,1704993040471,-1000.0,0.00032444,2]
[311245782,1704993040481,-500.0,0.00032876,7]
[311245784,1704993040490,-309.56999792,0.00032876,7]
[311245786,1704993040499,-500.0,0.00032876,7]
[311245789,1704993040513,-500.0,0.00032876,7]
[311245791,1704993040529,-500.0,0.00032876,7]
[311245793,1704993040538,-429.23739671,0.00032876,7]
[311245795,1704993040548,-500.0,0.00032876,7]
[311245797,1704993040557,-500.0,0.00032876,7]
[311245799,1704993040567,-320.71820666,0.00032876,7]
[311245801,1704993040576,-226.37636374,0.00032876,7]
[311245803,1704993040586,-500.0,0.00032876,7]
[311245805,1704993040595,-383.39348936,0.00032876,7]
[311245807,1704993040604,-500.0,0.00032876,7]
[311245809,1704993040613,-500.0,0.00032876,7]
[311245812,1704993040625,-500.0,0.00032876,7]
[311245813,1704993040639,-500.0,0.00032876,7]
[311245816,1704993040648,-159.92958005,0.00032876,7]
[311245818,1704993040657,-364.47024632,0.00032876,7]
[311245820,1704993040667,-330.54068822,0.00032876,7]
[311245822,1704993040676,-280.73233087,0.00032876,7]
[311245824,1704993040685,-153.84,0.00032877,2]
[311245826,1704993040695,-1084.02,0.00032877,15]
[311245828,1704993040704,-200.0,0.00032877,2]
[311245830,1704993040714,-576.0,0.00032982,3]
[311245832,1704993040723,-450.0,0.00032996,3]
[311245834,1704993040733,-6755.0451651,0.00033,2]
[311245836,1704993040742,-550.0,0.00033,3]
[311245838,1704993040751,-2000.0,0.00033,5]
[311245840,1704993040762,-155.0,0.00033,4]
[311245842,1704993040772,-152.11769049,0.00033198,2]
[311245844,1704993040781,-794.17,0.00033288,2]
[311245846,1704993040791,-1361.26,0.00033379,2]
[311245849,1704993040801,-163.17,0.00033767,2]
[311245851,1704993040810,-153.84,0.0003379,2]
[311245853,1704993040820,-152.11769049,0.00033957,2]
[311245855,1704993040829,-450.0,0.00033988,3]
[311245857,1704993040839,-201.6432844,0.00034,2]
[311245859,1704993040848,-1000.0,0.00034,4]
[311245861,1704993040857,-156.01510386,0.00034,2]
[311245863,1704993040867,-24812.93313546,0.00034,2]
[311245865,1704993040877,-22222.00453148,0.00034,7]
[311245867,1704993040886,-600.0,0.000342,2]
[311245869,1704993040896,-516.98069296,0.000342,2]
[311245871,1704993040906,-1361.26,0.00034357,2]
[311245873,1704993040915,-2792.117929,0.0003452,2]
[311245875,1704993040924,-25393.723649,0.0003452,2]
[311245877,1704993040934,-4066.6,0.00034521,2]
[311245879,1704993040943,-180.0,0.00034658,2]
[311245881,1704993040953,-11324.20358883,0.0003468,30]
[311245883,1704993040963,-153.84,0.00034703,2]
[311245885,1704993040973,-406.31,0.00034703,2]
[311245887,1704993040983,-152.11769049,0.00034716,2]
[311245889,1704993040993,-4188.176894,0.00034794,2]
[311245891,1704993041003,-38090.585474,0.00034794,2]
[311245893,1704993041012,-386.0405398,0.000348,2]
[311245895,1704993041023,-1023.32978314,0.000348,2]
[311245897,1704993041033,-1382.42797953,0.000348,2]
[311245899,1704993041042,-2638.56864252,0.000348,2]
[311245901,1704993041052,-195.65186542,0.0003488,7]
[311245903,1704993041062,-150.0,0.00034899,2]
[311245905,1704993041071,-150.0,0.00034899,2]
[311245907,1704993041080,-4904.95758154,0.000349,2]
[311245909,1704993041090,-550524.48878338,0.000349,2]
[311245911,1704993041099,-2061.69661748,0.000349,2]
[311245913,1704993041109,-2061.69661742,0.000349,2]
[311245915,1704993041118,-2061.69661742,0.000349,2]
[311245918,1704993041128,-2061.69661742,0.000349,2]
[311245920,1704993041137,-2061.69661742,0.000349,2]
[311245922,1704993041146,-2061.69661742,0.000349,2]
[311245924,1704993041155,-2061.69661742,0.000349,2]
[311245926,1704993041165,-2061.69661742,0.000349,2]
[311245928,1704993041174,-7999.99,0.00034931,14]
[311245930,1704993041184,-200.0,0.00034931,2]
[311245932,1704993041193,-308.0,0.00034931,2]
[311245934,1704993041202,-5584.235859,0.00034931,2]
[311245936,1704993041212,-50787.447299,0.00034931,2]
[311245938,1704993041221,-762.31094117,0.0003498,3]
[311245940,1704993041231,-665.61513378,0.0003498,3]
[311245942,1704993041240,-649.84318535,0.0003498,3]
[311245944,1704993041249,-990.0,0.00034997,30]
[311245946,1704993041259,-990.0,0.00034997,30]
[311245948,1704993041270,-990.0,0.00034997,30]
[311245950,1704993041279,-990.0,0.00034997,30]
[311245952,1704993041290,-990.0,0.00034997,30]
[311245954,1704993041299,-990.0,0.00034997,30]
[311245956,1704993041309,-990.0,0.00034997,30]
[311245979,1704993041520,-990.0,0.00034997,30]
[311245981,1704993041530,-990.0,0.00034997,30]
[311245983,1704993041540,-990.0,0.00034997,30]
[311245985,1704993041549,-990.0,0.00034997,30]
[311245987,1704993041558,-990.0,0.00034997,30]
[311245989,1704993041567,-990.0,0.00034997,30]
[311245991,1704993041576,-990.0,0.00034997,30]
[311245993,1704993041586,-990.0,0.00034997,30]
[311245995,1704993041595,-990.0,0.00034997,30]
[311245997,1704993041604,-990.0,0.00034997,30]
[311245999,1704993041613,-990.0,0.00034997,30]
[311246001,1704993041622,-990.0,0.00034997,30]
[311246004,1704993041633,-990.0,0.00034997,30]
[311246006,1704993041642,-990.0,0.00034997,30]
[311246008,1704993041651,-990.0,0.00034997,30]
[311246010,1704993041661,-990.0,0.00034997,30]
[311246012,1704993041670,-990.0,0.00034997,30]
[311246014,1704993041679,-990.0,0.00034997,30]
[311246015,1704993041688,-990.0,0.00034997,30]
[311246017,1704993041697,-990.0,0.00034997,30]
[311246019,1704993041706,-990.0,0.00034997,30]
[311246021,1704993041715,-990.0,0.00034997,30]
[311246023,1704993041724,-990.0,0.00034997,30]
[311246025,1704993041733,-990.0,0.00034997,30]
[311246027,1704993041742,-990.0,0.00034997,30]
[311246030,1704993041751,-990.0,0.00034997,30]
[311246031,1704993041760,-990.0,0.00034997,30]
[311246034,1704993041771,-990.0,0.00034997,30]
[311246035,1704993041780,-990.0,0.00034997,30]
[311246038,1704993041790,-990.0,0.00034997,30]
[311246039,1704993041799,-990.0,0.00034997,30]
[311246042,1704993041808,-990.0,0.00034997,30]
[311246043,1704993041817,-990.0,0.00034997,30]
[311246045,1704993041826,-990.0,0.00034997,30]
[311246047,1704993041835,-990.0,0.00034997,30]
[311246050,1704993041845,-990.0,0.00034997,30]
[311246051,1704993041854,-970.568696,0.00034997,30]
[311246053,1704993041863,-2874.6599795,0.00034997,2]
[311246056,1704993041872,-300.0,0.00034999,2]
[311246058,1704993041881,-300.0,0.00034999,2]
[311246060,1704993041891,-300.0,0.00034999,2]
[311246062,1704993041900,-300.0,0.00034999,2]
[311246063,1704993041909,-300.0,0.00034999,2]